Cogmind - Beta 15 @@@ ROGUE MODE // 2025.07.11 @ 21:16:02 Player: Flufflewump Result: Self-destructed Performance ------------- Evolutions (1) 500 Regions Visited (2) 400 Robots Destroyed (26) 130 Value Destroyed (399) 399 Prototype IDs (4) 80 Alien Tech Used (0) 0 Bonus (0) 0 TOTAL SCORE: 1509 Bonus ------- None Cogmind --------- Core Integrity 376/400 Matter 261/300 Energy 250/250 System Corruption 0% Temperature Cool (0) Movement Walking (190) Ox1 Location -9/Materials Parts ------- > --- POWER (1) -------- Ion Engine > --- PROPULSION (3) --- Aluminum Leg > --- UTILITY (3) ------ Disposable Heat Sink Disposable Heat Sink Small Storage Unit > --- WEAPON (2) ------- EMP Blaster EMP Blaster > --- INVENTORY (8) ---- Light Ion Engine Structural Scanner Sensor Array Small Laser Faulty Improved Medium Laser EMP Blaster Datajack Mining Claw Peak State ------------ > --- POWER ------------ Ion Engine > --- PROPULSION ------- Aluminum Leg Aluminum Leg > --- UTILITY ---------- Disposable Heat Sink Disposable Heat Sink Small Storage Unit > --- WEAPON ----------- EMP Blaster EMP Blaster > --- INVENTORY -------- Light Ion Engine Structural Scanner Sensor Array Small Laser Improved Medium Laser EMP Blaster Datajack Mining Claw [Rating: 13] Favorites ----------- Power Ion Engine Engine Ion Engine Propulsion Aluminum Leg Leg Aluminum Leg Utility Small Storage Unit Device Disposable Heat Sink Storage Small Storage Unit Weapon EMP Blaster Energy Gun Medium Laser Ballistic Gun Light Assault Rifle Launcher EMP Blaster Slashing Weapon Mining Claw Build | -11 -10 -9 ------- Run | Yrd Mat Mat Slots Evolved 2 | . . 2 Power . | . . . Propulsion 1 | . . 1 Utility 1 | . . 1 Weapon . | . . . Parts Attached 11 | . 11 . Power 1 | . 1 . Engine 1 | . 1 . Core . | . . . Reactor . | . . . Propulsion 1 | . 1 . Treads . | . . . Leg 1 | . 1 . Wheel . | . . . Hover . | . . . Flight . | . . . Utility 4 | . 4 . Device 4 | . 4 . Storage . | . . . Processor . | . . . Hackware . | . . . Protection . | . . . Artifact . | . . . Weapon 5 | . 5 . Energy Gun . | . . . Energy Cannon . | . . . Ballistic Gun 1 | . 1 . Ballistic Cannon . | . . . Launcher 3 | . 3 . Special Weapon . | . . . Impact Weapon . | . . . Slashing Weapon 1 | . 1 . Piercing Weapon . | . . . Special Melee Weapon . | . . . Unidentified Prototypes . | . . . Parts Lost 2 | . 1 1 Power 1 | . 1 . Propulsion 1 | . . 1 Utility . | . . . Weapon . | . . . Highest Loss Streak 1 | . 1 1 To Critical Strikes . | . . . Average Backups 7 | . 7 7 Power . | . . 1 Propulsion 1 | . 1 . Utility 1 | . 1 2 Weapon 3 | . 2 3 Tool/Special . | . . . Unused Backups 15 | . 11 4 Power 2 | . 1 1 Propulsion 6 | . 6 . Utility 1 | . 1 . Weapon 5 | . 3 2 Tool/Special 1 | . . 1 Average Slot Usage (%) 96 | . 99 87 Engine 13 | . 13 11 Leg 26 | . 28 21 Device 15 | . 13 22 Storage 13 | . 14 11 Energy Gun 5 | . 6 . Ballistic Gun 5 | . 6 . Launcher 15 | . 13 22 Peak Build Rating 13 | . 11 13 Average Rating 9 | . 8 12 On Entrance 7 | 6 6 11 Naked Turns . | . . . Heaviest Build 20 | 12 19 20 Greatest Support 20 | 20 20 20 Greatest Overweight (x) 1 | . . 1 Average Overweight (x) . | . . . Largest Inventory Capacity 8 | . 8 8 Average Capacity 8 | . 8 8 Most Carried 8 | . 8 8 Average Carried 7 | . 7 7 Final Capacity 8 | 8 8 8 Final Carried 8 | 6 8 8 Class Distribution -------------------- 100% | Mutant Dominant Class ---------------- Mutant | -10/Materials Mutant | -9/Materials Resources | -11 -10 -9 ----------- Run | Yrd Mat Mat Matter Collected 445 | 200 124 121 Remotely . | . . . Salvage Created 629 | . 243 386 Parts 59 | . 28 31 Haulers Intercepted 1 | . . 1 Recyclers Shooed 2 | . 2 . Parts Field Recycled . | . . . Retrieved Matter . | . . . Parts Self-Destructed . | . . . Prevented . | . . . Kills | -11 -10 -9 ------- Run | Yrd Mat Mat Combat Hostiles Destroyed 23 | . 14 9 Guns 14 | . 14 . AOE 9 | . . 9 Classes Destroyed 6 | . 2 4 Worker 1 | . . 1 Builder 1 | . . 1 Hauler 1 | . . 1 Swarmer 18 | . 12 6 Grunt 4 | . 2 2 Sentry 1 | . . 1 Best Kill Streak 10 | . 10 7 Combat Bots Only 10 | . 10 6 Max Kills in Single Turn 3 | . 2 3 Gunslinging 1 | . 1 . Exploded 3 | . . 3 Melee . | . . . Uniques/NPCs Destroyed . | . . . Combat | -11 -10 -9 -------- Run | Yrd Mat Mat Hostile Shots Fired 75 | . 57 18 Missed 28 | . 19 9 Hits 47 | . 38 9 Projectile 47 | . 38 9 Part Disruptions 1 | . . 1 Damage Taken 527 | . 367 160 Core 100 | . 76 24 Absorbed by Shields . | . . . Core Remaining (%) 84 | 100 69 . Volleys Fired 40 | . 30 10 Largest 2 | . 2 2 Hottest 70 | . 70 66 Shots Fired 80 | . 60 20 Gun 58 | . 58 . Cannon . | . . . Launcher 22 | . 2 20 Special . | . . . Kinetic 29 | . 29 . Thermal 29 | . 29 . Explosive . | . . . Electromagnetic 22 | . 2 20 Robot Hit Streak 5 | . 5 4 Robot Miss Streak 4 | . 4 1 Penetration Max . | . . . Secondary Targets 2 | . 2 . Max Gunslinging Chain 1 | . 1 . Shots Hit Robots 41 | . 32 9 Core Hits 33 | . 19 14 Critical Kills . | . . . Critical Parts Destroyed . | . . . Critical Strikes 1 | . 1 . Burn 1 | . 1 . Melee Attacks 13 | . 13 . Impact . | . . . Slashing 13 | . 13 . Piercing . | . . . Sneak Attacks 1 | . 1 . Combat Hostiles . | . . . Follow-up Attacks . | . . . Damage Inflicted 985 | . 504 481 Guns 384 | . 384 . Cannons . | . . . Explosions 541 | . 60 481 Melee 48 | . 48 . Ramming 12 | . 12 . Kinetic 185 | . 185 . Thermal 251 | . 199 52 Explosive . | . . . Electromagnetic 489 | . 60 429 Impact . | . . . Slashing 48 | . 48 . Piercing . | . . . Highest Corruption 3 | . 3 . Average Corruption 2 | . 2 . Corruption Purged . | . . . Corruption Blocked . | . . . Effects 18 | . 18 . Message Errors 7 | . 7 . Matter Fused 2 | . 2 . Energy Discharges 3 | . 3 . Data Loss (minor) 4 | . 4 . Data Loss (major) 1 | . 1 . Alerts 1 | . 1 . Overload Shots . | . . . Overflow Damage 36 | . 36 . Projectiles . | . . . Explosions 8 | . 8 . Melee 28 | . 28 . Knockbacks . | . . . Impact . | . . . Kinetic . | . . . Secondary . | . . . Self-Inflicted Damage 108 | . 29 79 Shots 7 | . 2 5 Rammed . | . . . Targets Rammed 3 | . 3 . Kicked 3 | . 3 . Crushed . | . . . Highest Temperature 65 | . 65 11 Average Temperature 25 | . 27 6 Received Heat Transfer 63 | . 54 9 Siege Activations . | . . . Martial Activations . | . . . Shielding Activations . | . . . Robots Disrupted . | . . . Combat Hostiles . | . . . Robots Corrupted . | . . . Combat Hostiles . | . . . Parts Fried . | . . . Impact Corruptions . | . . . Robots Melted . | . . . Combat Hostiles . | . . . Parts Melted . | . . . Heat Transferred 766 | . 666 100 Parts Sabotaged . | . . . Parts Stolen . | . . . Parts Stripped . | . . . Power Chain Reactions 5 | . . 5 Alert | -11 -10 -9 ------- Run | Yrd Mat Mat Maximum Alert Level 1 | . 1 1 Low Security (%) 97 | . 99 92 Level 1 2 | . . 7 Level 2 . | . . . Level 3 . | . . . Level 4 . | . . . Level 5 . | . . . High Security . | . . . Max Security . | . . . Peak Influence 219 | . 200 219 Initial . | . . . Average 54 | . 50 72 Influence Increases 729 | . 365 364 Destroy 0b10 Robot/C 460 | . 280 180 Destroy 0b10 Robot/NC 15 | . . 15 Destroy Leader 82 | . 50 32 Successful Hack 15 | . 12 3 Disable Machine 45 | . 15 30 Destroy Structure 22 | . 8 14 Lose Combat Pursuer 90 | . . 90 Influence Decreases 525 | . 365 160 Time Decay 505 | . 355 150 Lost Part 20 | . 10 10 Squads Dispatched 2 | . 2 . Investigation . | . . . Extermination . | . . . Reinforcement 2 | . 2 . Assault . | . . . Garrison . | . . . Intercept . | . . . Searches Triggered . | . . . Construction Impeded . | . . . Haulers Reinforced . | . . . Active Scanning Responses . | . . . Cargo Convoy Interrupts . | . . . Stealth | -11 -10 -9 --------- Run | Yrd Mat Mat Distress Signals 2 | . 2 . Communications Jammed . | . . . Distress Signals . | . . . Times Spotted 30 | . 22 8 Peak Tracking Total 4 | . 4 4 Tactical Retreats 4 | . . 4 Traps | -11 -10 -9 ------- Run | Yrd Mat Mat Traps Triggered 3 | . 3 . Indirectly . | . . . Trap Hack Attempts . | . . . Triggered . | . . . Disarmed . | . . . Reprogrammed . | . . . Reused . | . . . Traps Extracted . | . . . Installed . | . . . Triggered . | . . . Machines | -11 -10 -9 ---------- Run | Yrd Mat Mat Machines Disabled 3 | . 1 2 Max in Single Turn 1 | . 1 1 Machines Repaired . | . . . Machines Dismantled . | . . . Machines Sabotaged . | . . . Overloaded Fab Kills . | . . . Hacking | -11 -10 -9 --------- Run | Yrd Mat Mat Machines Accessed 5 | . 4 1 Terminals 3 | . 3 . Fabricators . | . . . Repair Stations . | . . . Recycling Units 2 | . 1 1 Scanalyzers . | . . . Garrison Access . | . . . Total Hacks 13 | . 11 2 Successful 8 | . 7 1 Failed 5 | . 4 1 Catastrophic . | . . . Database Lockouts . | . . . Manual 6 | . 5 1 Terminals 7 | . 7 . Fabricators . | . . . Repair Stations . | . . . Recycling Units 6 | . 4 2 Scanalyzers . | . . . Garrison Access . | . . . Terminal Hacks 3 | . 3 . Prototype ID Bank 2 | . 2 . Recycling Unit Index 1 | . 1 . Fabricator Hacks . | . . . Repair Station Hacks . | . . . Recycling Unit Hacks 1 | . 1 . Retrieve Components 1 | . 1 . Scanalyzer . | . . . Garrison Access Hacks . | . . . Unauthorized Hacks 4 | . 3 1 Terminals 1 | . 1 . Track 1 | . 1 . Fabricators . | . . . Repair Stations . | . . . Recycling Units 3 | . 2 1 Monitor 1 | . 1 . Reject 2 | . 1 1 Scanalyzers . | . . . Garrison Access . | . . . Data Cores Recovered . | . . . Used . | . . . Hacking Detections 2 | . 1 1 Full Trace Events . | . . . Feedback Events . | . . . Feedback Blocked . | . . . Robot Schematics Acquired . | . . . Robots Built . | . . . Authchips . | . . . Time . | . . . Total Robot Build Rating . | . . . Part Schematics Acquired . | . . . Parts Built . | . . . Authchips . | . . . Time . | . . . Total Part Build Rating . | . . . Parts Repaired . | . . . Time . | . . . Parts Recycled . | . . . Recycled Matter . | . . . Retrieved Matter . | . . . Retrieved Components 9 | . 9 . Parts Scanalyzed . | . . . Part Schematics Acquired . | . . . Parts Damaged . | . . . Bothacking | -11 -10 -9 ------------ Run | Yrd Mat Mat Used RIF Installer . | . . . Robots Hacked . | . . . Non-combat . | . . . Combat . | . . . Robot Hacks Applied . | . . . Relay Couplers Released . | . . . Fabnet Peak Effective % . | . . . Robots Rewired . | . . . Allies Hacked . | . . . Hacks Repelled . | . . . Allies | -11 -10 -9 -------- Run | Yrd Mat Mat Total Allies . | . . . Largest Group . | . . . Highest-Rated Group . | . . . Highest-Rated Ally . | . . . Total Orders . | . . . Ally Attacks . | . . . Total Damage . | . . . Kills . | . . . Allies Corrupted . | . . . Allies Melted . | . . . Intel | -11 -10 -9 ------- Run | Yrd Mat Mat Active Infowar (turns) 890 | . 890 . Sensors 188 | . 188 . Structural 702 | . 702 . Robot Analysis Total . | . . . Derelict Logs Recovered . | . . . Drone Launches . | . . . Drone Recoveries . | . . . Exploration | -11 -10 -9 ------------- Run | Yrd Mat Mat Turns Passed 1879 | . 1516 363 Spaces Moved 773 | 1 592 180 Core . | . . . Treads . | . . . Legs 773 | 1 592 180 Wheels . | . . . Hover . | . . . Flight . | . . . Fastest Speed 120 | 120 120 120 Average Speed 127 | 120 120 150 Slowest Speed 190 | 120 120 190 Overloaded Moves . | . . . Propulsion Burnouts . | . . . Robots Hopped . | . . . Potential Cave-ins . | . . . Cave-ins Triggered . | . . . Exploration Rate (%) 29 | 2 66 20 Regions Visited 2 Branch Regions . Pre-discovered Areas . | . . . Known Exits Taken . | . . . Unknown Exits Taken 2 | 1 1 . Scrap Searched . | . . . Spaces Dug 8 | . 8 . Terrain Destroyed 20 | . 8 12 Melee 8 | . 8 . Projectile . | . . . AOE 12 | . . 12 Terrain Rammed . | . . . Walls Destroyed . | . . . Machines Disabled . | . . . Actions | -11 -10 -9 --------- Run | Yrd Mat Mat Total 1564 | . 1313 251 Wait 705 | . 646 59 Move 771 | . 591 180 Hop . | . . . Pick Up 7 | . 6 1 Fast Attach 5 | . 5 . Attach 2 | . 1 1 Detach 2 | . 2 . Swap 7 | . 7 . Drop 9 | . 9 . Fire 40 | . 30 10 Melee 13 | . 13 . Ram . | . . . Kick 3 | . 3 . Crush . | . . . Escape Stasis . | . . . Rewire . | . . . Trap . | . . . Miscellaneous . | . . . Route ------- -11/Scrapyard -10/Materials (discovered 3 exits: *Mat x2 / [*Min]) -9/Materials History --------- Turn | Location | Event 1 | -11/Scrapyard | Discovered new exit (range 0) 1 | -11/Scrapyard | Entered Materials 111 | -10/Materials | Discovered new exit (range 16) 289 | -10/Materials | Destroyed 10 combat bots 289 | -10/Materials | Discovered new exit (range 16) 306 | -10/Materials | Discovered new exit (range 15) 314 | -10/Materials | Build established: Mutant 1517 | -10/Materials | Entered another Materials area 1517 | -9/Materials | Evolved 2 slots: Propulsion x1, Utility x1 1880 | -9/Materials | Self-destructed Last Messages --------------- 01739_ R-06 Scavenger collects Corrupted Wheel. 01784_ Connecting with Recycling Unit... 01784_ Current location identified: Materials >>Trojan(Reject) Trojan loaded successfully. Testing... Ejection routine running. 01794_ Connecting with Recycling Unit... 01834_ Pressure Siphon disabled. 01834_ S-10 Pest destroyed. 01834_ Chain reaction triggered in Corrupted Lgt. Ion Engine. 01837_ S-10 Pest destroyed. 01848_ R-06 Scavenger collects Corrupted Lgt. Ion Engine. 01851_ R-06 Scavenger collects Corrupted Lgt. Assault Rifle. 01851_ S-10 Pest destroyed. 01851_ Door malfunctions. 01855_ R-06 Scavenger collects Corrupted Flight Unit. 01857_ Aluminum Leg destroyed. 01859_ R-06 Scavenger collects Corrupted Terrain Scanner. 01862_ R-06 Scavenger collects Corrupted Welding Torch. Map ----- +----------------------------------------------------+ | ????????????????????????????????????????? | | ????????????????????????????????????????? | | ????????????????????? ??????????????????? | | ??????????????? ???? ????????????????? | | ???????????? ???? ?????????????? | | ?????????? # ""?" ???????????? | | ???? ??? # #?????????? | | ??? #?* #?????????? | | ??? #?? [ %""" ??????????? | | ??? #* ? % "" ???????????? | | ??? # ?# % %%" ????????????? | | ??# #?[ # ?????????????? | | ??# #??? % ??????????????? | | ??# #???!# ???????????????? | | ### ###### #????????????????? | | !! ######+#?????????? | | % ! / #?????????? | | ! #????????????????? | | #????????????????? | | ########## #????????????????? | | ! ## # #????????????????? | | = ## """ # #????????????????? | | = ## ! "Y" # ########?????????? | | # ## # # = #?????????? | | ##% #######+## # #?????????? | | ?# % # @ """#?????????? | | ?# ########### + """#?????????? | | ## ##????????# # """#?????????? | | ## ########??# # #?????????? | | # #??####+#############?????????? | | # #???#[ #??????????????????? | | # #???# #??????????????????? | | + " " #???# """ #??????????????????? | | # "R" #???# """ #??????????????????? | | # """ #???# """ #??????????????????? | | #?######???# #??????????????????? | | #??????????########??????????????????? | | #????????????????????????????????????? | | #??????##????????????????????????????? | | ####### ##???????????????????????????? | | # #???????????????????????????? | | # #???????????????????????????? | | # % #########???????????????????? | | #! ## #???????????????????? | | + ##[= #???????????????????? | | #= ##[= #???????????????????? | | # ##[ #???????????????????? | | # ## #???????????????????? | | # #?? ????????????????????? | | ##############+####??????????????????? | +----------------------------------------------------+ Best States ------------- Heat Dissipation 28 Coolant Potential 100 Energy Generation 10 Energy Capacity 250 Matter Stores 300 Matter Capacity 300 Sight Range 16 Robot Scan Range 14 Terrain Scan Density 10 Evasion (%) 55 Item Schematics ----------------- None Robot Schematics ------------------ None Fabricated ------------ Nothing Repaired ---------- Nothing Alien Tech Used ----------------- None Achievements -------------- None Challenges ------------ None Game ------ Seed MicroDeuteriumSpecial Manual? 0 Play Time 00:15:30 Cumulative 29.6 hours Start 2025.07.11 @ 21:01:07 End 2025.07.11 @ 21:16:02 Sessions 1 Manual Loads 0 Difficulty Rogue Special Mode None Game No. 29 Rogue 29 Adventurer 0 Explorer 0 Win Type - Total 0 Types 0/0/0/0/0/0/0/0/0/0 Lore% 23 Gallery% 31 Achievement% 29 Wizard Run 0 Options --------- Layout 0 ASCII 1 Keyboard 1 Movement Vi Keybinds 1 Fullscreen 1 Font 18/SmallcapsGlow Map View 76x50 Zoom Use 0% Tactical HUD 1 Map Filters NONE Filters NONE Steam 1 RUN: 33053d03-801c-4789-b3a6-8bd601c22e13